Cogmind - Beta 13 @@@ ROGUE MODE // 2024.06.08 @ 08:53:39 // Winter2019/RPGLIKE Player: Haldron Result: Self-destructed Performance ------------- Evolutions (1) 500 Regions Visited (5) 1000 Robots Destroyed (99) 495 Value Destroyed (2423) 2423 Prototype IDs (29) 580 Alien Tech Used (0) 0 Bonus (568) 568 TOTAL SCORE: 5566 Bonus ------- High Alert Combat Kills 268 Aligned with FarCom 300 Cogmind --------- Core Integrity 129/900 Matter 350/350 Energy 480/480 System Corruption 0% Temperature Cool (0) Movement Walking (120) Location -9/Exiles Parts ------- > --- POWER (1) -------- Cooled Ion Engine > --- PROPULSION (3) --- Aluminum Leg Aluminum Leg Aluminum Leg > --- UTILITY (3) ------ Improved Targeting Computer Hardened Light Armor Plating Trap Extractor (0/4) > --- WEAPON (3) ------- Light EM Pulse Cannon Mining Claw Mining Claw > --- INVENTORY (5) ---- Trap Extractor (4/4 Blade) Light EM Pulse Cannon Light EM Pulse Cannon Field Lobotomy Kit (5) Peak State ------------ > --- POWER ------------ Cooled Ion Engine > --- PROPULSION ------- Improved Treads Improved Treads Aluminum Leg > --- UTILITY ---------- Improved Heat Sink Improved Targeting Computer Hardened Light Armor Plating > --- WEAPON ----------- Light EM Pulse Cannon Light EM Pulse Cannon Light EM Pulse Cannon > --- INVENTORY -------- Protomatter Trap Extractor Trap Extractor Rocket Launcher Mining Claw [Rating: 21] Favorites ----------- Power Cooled Ion Engine Engine Cooled Ion Engine Propulsion Improved Treads Treads Improved Treads Leg Aluminum Leg Utility Seismic Detector Device Seismic Detector Storage Compact Battery Processor Improved Targeting Computer Protection Hardened Light Armor Plating Weapon Light EM Pulse Cannon Energy Gun Particle Gun Energy Cannon Light EM Pulse Cannon Ballistic Gun Light Assault Rifle Ballistic Cannon Light Cannon Launcher Grenade Launcher Special Weapon Mining Laser Slashing Weapon Mining Claw Special Melee Weapon Datajack Build | -11 -10 -10 -9 -9 -9 ------- Run | Yrd Mat Min Mat Min Exi Slots Evolved 6 | 3 1 . 2 . . Power . | . . . . . . Propulsion 2 | 1 . . 1 . . Utility 2 | 1 1 . . . . Weapon 2 | 1 . . 1 . . Parts Attached 56 | 7 26 2 19 . 2 Power 4 | 1 3 . . . . Engine 4 | 1 3 . . . . Core . | . . . . . . Reactor . | . . . . . . Propulsion 8 | 2 3 . 3 . . Treads 2 | . 2 . . . . Leg 6 | 2 1 . 3 . . Wheel . | . . . . . . Hover . | . . . . . . Flight . | . . . . . . Utility 14 | 2 6 1 5 . . Device 8 | 2 4 1 1 . . Storage 1 | . . . 1 . . Processor 1 | . . . 1 . . Hackware . | . . . . . . Protection 4 | . 2 . 2 . . Artifact . | . . . . . . Weapon 30 | 2 14 1 11 . 2 Energy Gun 3 | . 2 1 . . . Energy Cannon 6 | . . . 6 . . Ballistic Gun 7 | 2 4 . 1 . . Ballistic Cannon 6 | . 6 . . . . Launcher 1 | . 1 . . . . Special Weapon 1 | . 1 . . . . Impact Weapon . | . . . . . . Slashing Weapon 3 | . . . 1 . 2 Piercing Weapon . | . . . . . . Special Melee Weapon 3 | . . . 3 . . Unidentified Prototypes 1 | . 1 . . . . Parts Lost . | . . . . . . Power . | . . . . . . Propulsion . | . . . . . . Utility . | . . . . . . Weapon . | . . . . . . Highest Loss Streak . | . . . . . . To Critical Strikes . | . . . . . . Average Slot Usage (%) 98 | . 98 100 98 100 100 Engine 12 | . 13 12 10 10 10 Treads 17 | . 21 25 14 . . Leg 8 | . 5 . 9 30 30 Device 19 | . 25 25 12 10 10 Processor 3 | . . . 8 10 10 Protection 7 | . 2 12 10 10 10 Energy Gun 1 | . . 9 . . . Energy Cannon 12 | . . . 26 30 27 Ballistic Gun 4 | . 8 . 1 . . Ballistic Cannon 8 | . 16 15 . . . Naked Turns . | . . . . . . Heaviest Build 27 | 7 23 23 27 27 27 Greatest Support 46 | 20 46 46 46 30 30 Greatest Overweight (x) 2 | . . . 2 . . Average Overweight (x) . | . . . . . . Largest Inventory Capacity 5 | 3 3 3 5 5 5 Average Capacity 3 | 3 3 3 4 5 5 Most Carried 5 | 1 3 3 5 5 5 Average Carried 3 | . 2 3 4 5 4 Final Capacity 5 | 3 3 3 5 5 5 Final Carried 5 | 1 3 3 5 5 4 Class Distribution -------------------- 62% | Mutant 16% | Gunner 10% | Trapper-Gunner 4% | Scavenger-Gunner 3% | Tank Dominant Class ---------------- Mutant | -10/Materials Mutant | -10/Mines Gunner | -9/Materials Trapper-Gunner | -9/Mines Trapper-Gunner | -9/Exiles Resources | -11 -10 -10 -9 -9 -9 ----------- Run | Yrd Mat Min Mat Min Exi Matter Collected 1343 | 286 507 275 255 . 20 Remotely 825 | 148 362 275 40 . . Salvage Created 3375 | 106 411 364 2281 103 110 Parts 220 | 9 36 19 150 6 . Haulers Intercepted 7 | . 2 . 5 . . Recyclers Shooed 7 | . 1 2 4 . . Parts Field Recycled . | . . . . . . Retrieved Matter . | . . . . . . Parts Self-Destructed . | . . . . . . Prevented . | . . . . . . Kills | -11 -10 -10 -9 -9 -9 ------- Run | Yrd Mat Min Mat Min Exi Combat Hostiles Destroyed 69 | . 10 9 42 3 5 Guns 9 | . 5 2 2 . . Cannons 49 | . 5 7 29 3 5 AOE 8 | . . . 8 . . Classes Destroyed 15 | 2 5 . 7 . 1 Worker 2 | . . . 1 1 . Builder 2 | . . . 2 . . Tunneler 4 | 2 . 1 1 . . Hauler 7 | . 2 . 5 . . Recycler 8 | 1 1 2 4 . . Mechanic 1 | . . . 1 . . Operator 3 | . 1 . 2 . . Watcher 8 | . 3 . 5 . . Swarmer 15 | . 5 3 4 3 . Grunt 36 | . 5 6 25 . . Brawler 1 | . . . 1 . . Duelist 1 | . . . 1 . . Protector 1 | . . . 1 . . Sentry 10 | . . . 10 . . Assembled 5 | . . . . . 5 Best Kill Streak 6 | 2 4 3 6 3 5 Combat Bots Only 5 | . 4 3 5 3 5 Max Kills in Single Turn 2 | 1 1 1 2 1 1 Gunslinging . | . . . . . . Exploded 2 | . . . 2 . . Melee . | . . . . . . Uniques/NPCs Destroyed 1 | . . . . . 1 8R-AWN (-9/Exiles) Combat | -11 -10 -10 -9 -9 -9 -------- Run | Yrd Mat Min Mat Min Exi Hostile Shots Fired 285 | . 49 43 102 12 79 Missed 67 | . 13 8 28 1 17 Damage Taken 2831 | . 356 444 1025 80 926 Core 2073 | . 285 310 719 53 706 Absorbed by Shields . | . . . . . . Redirected to Core 1684 | . 205 236 603 39 601 Ignored by Resistances 251 | . . . 116 11 124 Core Remaining (%) 83 | 100 . 66 . . . Volleys Fired 193 | 8 64 27 80 6 8 Largest 3 | 2 2 2 3 3 3 Hottest 168 | 40 100 100 168 168 168 Shots Fired 437 | 16 120 53 212 16 20 Gun 99 | 16 64 13 6 . . Cannon 331 | . 49 40 206 16 20 Launcher 4 | . 4 . . . . Special 3 | . 3 . . . . Kinetic 157 | 16 101 40 . . . Thermal 22 | . 3 13 6 . . Explosive 4 | . 4 . . . . Electromagnetic 254 | . 12 . 206 16 20 Robot Hit Streak 46 | 2 8 9 46 8 14 Robot Miss Streak 3 | 3 3 2 3 1 1 Penetration Max . | . . . . . . Secondary Targets 1 | . 1 . . . . Max Gunslinging Chain 1 | . 1 . . . . Shots Hit Robots 292 | 7 61 40 148 9 27 Core Hits 136 | 5 27 14 74 4 12 Critical Kills . | . . . . . . Critical Parts Destroyed 1 | . 1 . . . . Critical Strikes 9 | . 4 . 5 . . Destroy 1 | . 1 . . . . Blast 2 | . 2 . . . . Corrupt 6 | . 1 . 5 . . Melee Attacks 18 | . . . 3 . 15 Impact . | . . . . . . Slashing 18 | . . . 3 . 15 Piercing . | . . . . . . Sneak Attacks 1 | . . . 1 . . Combat Hostiles . | . . . . . . Follow-up Attacks 3 | . . . . . 3 Damage Inflicted 6597 | 60 893 707 4176 177 584 Guns 622 | 60 339 174 49 . . Cannons 4750 | . 374 523 3395 177 281 Explosions 827 | . 177 . 650 . . Melee 370 | . . . 67 . 303 Ramming 28 | . 3 10 15 . . Kinetic 1171 | 60 588 523 . . . Thermal 911 | . 38 174 699 . . Explosive 139 | . 139 . . . . Electromagnetic 3978 | . 125 . 3395 177 281 Impact . | . . . . . . Slashing 370 | . . . 67 . 303 Piercing . | . . . . . . Highest Corruption 1 | . 1 1 . . . Average Corruption 1 | . 1 1 . . . Corruption Purged . | . . . . . . Corruption Blocked . | . . . . . . Effects 20 | . 16 4 . . . Message Errors 3 | . 3 . . . . Matter Fused 3 | . 2 1 . . . Heat Flow Errors 2 | . 2 . . . . Energy Discharges 4 | . 3 1 . . . Parts Fused 1 | . 1 . . . . Data Loss (minor) 3 | . 3 . . . . Data Loss (major) 1 | . 1 . . . . Misfires 1 | . 1 . . . . Alerts 1 | . . 1 . . . Weapon Failures 1 | . . 1 . . . Overload Shots . | . . . . . . Overflow Damage 173 | . 43 1 113 . 16 Projectiles 114 | . . 1 97 . 16 Explosions 59 | . 43 . 16 . . Melee . | . . . . . . Knockbacks 24 | . 12 12 . . . Impact . | . . . . . . Kinetic 23 | . 11 12 . . . Secondary 1 | . 1 . . . . Self-Inflicted Damage 162 | . 30 . 132 . . Shots 5 | . 1 . 4 . . Rammed 5 | . 1 1 3 . . Targets Rammed 6 | . 1 2 3 . . Kicked . | . . . . . . Crushed 1 | . . 1 . . . Highest Temperature 315 | . 133 315 84 36 38 Average Temperature 41 | . 28 87 18 16 21 Received Heat Transfer 776 | . 81 228 387 . 80 Siege Activations . | . . . . . . Robots Corrupted 3 | . . . 3 . . Combat Hostiles 3 | . . . 3 . . Parts Fried 16 | . . . 16 . . Impact Corruptions . | . . . . . . Robots Melted . | . . . . . . Combat Hostiles . | . . . . . . Parts Melted 1 | . . 1 . . . Heat Transferred 1196 | . 100 407 689 . . Parts Sabotaged . | . . . . . . Parts Stolen . | . . . . . . Parts Stripped . | . . . . . . Power Chain Reactions 8 | . 1 . 7 . . Alert | -11 -10 -10 -9 -9 -9 ------- Run | Yrd Mat Min Mat Min Exi Peak Influence 858 | 15 152 187 858 424 . Initial 334 | . 9 12 29 334 . Average 222 | 8 29 68 477 417 . Maximum Alert Level 3 | . . . 3 2 . Low Security (%) 64 | 100 100 100 18 . . Level 1 10 | . . . 25 6 . Level 2 15 | . . . 30 93 . Level 3 10 | . . . 26 . . Level 4 . | . . . . . . Level 5 . | . . . . . . High Security . | . . . . . . Max Security . | . . . . . . Squads Dispatched 9 | . 2 . 7 . . Investigation 3 | . 1 . 2 . . Extermination . | . . . . . . Reinforcement 4 | . 1 . 3 . . Assault 2 | . . . 2 . . Garrison . | . . . . . . Intercept . | . . . . . . Searches Triggered . | . . . . . . Construction Impeded . | . . . . . . Haulers Reinforced . | . . . . . . Active Scanning Responses . | . . . . . . Cargo Convoy Interrupts . | . . . . . . Stealth | -11 -10 -10 -9 -9 -9 --------- Run | Yrd Mat Min Mat Min Exi Distress Signals 3 | . . . 3 . . Communications Jammed . | . . . . . . Distress Signals . | . . . . . . Times Spotted 109 | . 31 9 58 3 8 Peak Tracking Total 7 | . 4 2 5 3 7 Tactical Retreats . | . . . . . . Traps | -11 -10 -10 -9 -9 -9 ------- Run | Yrd Mat Min Mat Min Exi Traps Triggered 3 | . 3 . . . . Indirectly . | . . . . . . Trap Hack Attempts 73 | . . . 73 . . Triggered 1 | . . . 1 . . Disarmed . | . . . . . . Reprogrammed 10 | . 6 . 4 . . Reused 3 | . . . 2 . 1 Traps Extracted 9 | . 6 . 3 . . Installed 4 | . . . 1 . 3 Triggered 2 | . . . 2 . . Most Traps Carried 8 | . 6 6 8 8 8 Machines | -11 -10 -10 -9 -9 -9 ---------- Run | Yrd Mat Min Mat Min Exi Machines Disabled 8 | . 1 1 5 . 1 Max in Single Turn 2 | . 1 1 2 . 1 Machines Repaired . | . . . . . . Machines Dismantled . | . . . . . . Machines Sabotaged . | . . . . . . Overloaded Fab Kills . | . . . . . . Hacking | -11 -10 -10 -9 -9 -9 --------- Run | Yrd Mat Min Mat Min Exi Machines Accessed 18 | . 9 . 8 . 1 Terminals 14 | . 7 . 7 . . Fabricators . | . . . . . . Repair Stations . | . . . . . . Recycling Units 2 | . 2 . . . . Scanalyzers 1 | . . . 1 . . Garrison Access . | . . . . . . Total Hacks 64 | . 38 . 25 . 1 Successful 39 | . 23 . 15 . 1 Failed 25 | . 15 . 10 . . Catastrophic 6 | . 4 . 2 . . Database Lockouts . | . . . . . . Manual 43 | . 24 . 18 . 1 Terminals 52 | . 30 . 22 . . Fabricators . | . . . . . . Repair Stations . | . . . . . . Recycling Units 8 | . 8 . . . . Scanalyzers 3 | . . . 3 . . Garrison Access . | . . . . . . Terminal Hacks 15 | . 9 . 5 . 1 Part Schematic 1 | . . . 1 . . Robot Analysis 2 | . . . 2 . . Prototype ID Bank 3 | . 2 . 1 . . Branch Access Points 1 | . 1 . . . . Terminal Index 1 | . 1 . . . . Alert Level 1 | . 1 . . . . Locate Traps 3 | . 3 . . . . Reprogram Traps 1 | . 1 . . . . Registered Components 1 | . . . 1 . . Derelict Proto ID Bank 1 | . . . . . 1 Fabricator Hacks . | . . . . . . Repair Station Hacks . | . . . . . . Recycling Unit Hacks 2 | . 2 . . . . Report Inventory 1 | . 1 . . . . Retrieve Components 1 | . 1 . . . . Scanalyzer 2 | . . . 2 . . Insert Component 1 | . . . 1 . . Analyze 1 | . . . 1 . . Garrison Access Hacks . | . . . . . . Unauthorized Hacks 20 | . 12 . 8 . . Terminals 16 | . 8 . 8 . . Assimilate 2 | . 1 . 1 . . Botnet 12 | . 6 . 6 . . Operators 2 | . 1 . 1 . . Fabricators . | . . . . . . Repair Stations . | . . . . . . Recycling Units 4 | . 4 . . . . Reject 2 | . 2 . . . . Mask 2 | . 2 . . . . Scanalyzers . | . . . . . . Garrison Access . | . . . . . . Data Cores Recovered . | . . . . . . Used . | . . . . . . Hacking Detections 17 | . 9 . 8 . . Full Trace Events 7 | . 4 . 3 . . Feedback Events . | . . . . . . Feedback Blocked . | . . . . . . Robot Schematics Acquired . | . . . . . . Robots Built . | . . . . . . Authchips . | . . . . . . Time . | . . . . . . Total Robot Build Rating . | . . . . . . Part Schematics Acquired 2 | . . . 2 . . Parts Built . | . . . . . . Authchips . | . . . . . . Time . | . . . . . . Total Part Build Rating . | . . . . . . Parts Repaired . | . . . . . . Time . | . . . . . . Parts Recycled . | . . . . . . Recycled Matter . | . . . . . . Retrieved Matter . | . . . . . . Retrieved Components 10 | . 10 . . . . Parts Scanalyzed 1 | . . . 1 . . Part Schematics Acquired 1 | . . . 1 . . Parts Damaged . | . . . . . . Bothacking | -11 -10 -10 -9 -9 -9 ------------ Run | Yrd Mat Min Mat Min Exi Used RIF Installer . | . . . . . . Robots Hacked . | . . . . . . Non-combat . | . . . . . . Combat . | . . . . . . Robot Hacks Applied . | . . . . . . Relay Couplers Released . | . . . . . . Fabnet Peak Effective % . | . . . . . . Robots Rewired . | . . . . . . Allies Hacked . | . . . . . . Hacks Repelled . | . . . . . . Allies | -11 -10 -10 -9 -9 -9 -------- Run | Yrd Mat Min Mat Min Exi Total Allies 1 | . . . 1 . . Largest Group 1 | . . . 1 1 1 Highest-Rated Group 10 | . . . 10 10 10 Highest-Rated Ally 10 | . . . 10 10 10 Total Orders 10 | . . . 8 . 2 STAY 5 | . . . 4 . 1 FOLLOW 5 | . . . 4 . 1 Ally Attacks 6 | . . . . . 6 Total Damage 374 | . . . . . 374 Kills 1 | . . . . . 1 Allies Corrupted . | . . . . . . Allies Melted . | . . . . . . Turrets Deployed 1 | . . . . . 1 Intel | -11 -10 -10 -9 -9 -9 ------- Run | Yrd Mat Min Mat Min Exi Robot Analysis Total 2 | . . . 2 . . Derelict Logs Recovered 1 | . . 1 . . . Drone Launches . | . . . . . . Drone Recoveries . | . . . . . . Exploration | -11 -10 -10 -9 -9 -9 ------------- Run | Yrd Mat Min Mat Min Exi Turns Passed 7040 | 123 2977 722 2628 220 370 Spaces Moved 3952 | 80 1635 370 1467 162 238 Core 6 | 6 . . . . . Treads 2482 | . 1226 370 886 . . Legs 1464 | 74 409 . 581 162 238 Wheels . | . . . . . . Hover . | . . . . . . Flight . | . . . . . . Fastest Speed 50 | 50 120 160 120 120 120 Average Speed 145 | 114 149 160 144 120 120 Slowest Speed 260 | 120 160 160 260 120 120 Overloaded Moves . | . . . . . . Propulsion Burnouts . | . . . . . . Robots Hopped . | . . . . . . Cave-ins Triggered . | . . . . . . Exploration Rate (%) 63 | 4 99 90 94 51 42 Regions Visited 5 Branch Regions 3 Pre-discovered Areas . | . . . . . . Known Exits Taken 1 | . 1 . . . . Unknown Exits Taken 4 | 1 . 1 1 1 . Scrap Searched 2 | . . 1 . 1 . Spaces Dug 4 | . 3 . 1 . . Terrain Destroyed 91 | . 24 . 67 . . Melee 1 | . . . 1 . . Projectile 3 | . 3 . . . . AOE 87 | . 21 . 66 . . Terrain Rammed . | . . . . . . Walls Destroyed . | . . . . . . Machines Disabled . | . . . . . . Actions | -11 -10 -10 -9 -9 -9 --------- Run | Yrd Mat Min Mat Min Exi Total 4833 | 95 2042 446 1794 175 281 Wait 396 | . 274 35 66 8 13 Move 3947 | 79 1634 369 1466 161 238 Hop . | . . . . . . Pick Up 15 | 1 6 1 5 . 2 Fast Attach 35 | 7 18 2 8 . . Attach 1 | . . . 1 . . Detach 2 | . 2 . . . . Swap 20 | . 8 . 10 . 2 Drop 34 | . 17 3 11 . 3 Fire 193 | 8 64 27 80 6 8 Melee 15 | . . . 3 . 12 Ram . | . . . . . . Kick . | . . . . . . Crush 6 | . 1 2 3 . . Escape Stasis . | . . . . . . Rewire . | . . . . . . Trap 77 | . . . 74 . 3 Miscellaneous 92 | . 18 7 67 . . Route ------- -11/Scrapyard -10/Materials (discovered 6 exits: *Mat x3 / *Min x2 / [*Sub]) -10/Mines (discovered 2 exits: *Mat x2) -9/Materials (discovered 4 exits: [*Mat x3] / [*Min]) -9/Mines -9/Exiles (discovered 1 exit: [*Min]) History --------- Turn | Location | Event 1 | -11/Scrapyard | Upgraded with Propulsion slot (x1) 1 | -11/Scrapyard | Upgraded with Utility slot (x1) 1 | -11/Scrapyard | Upgraded with Weapon slot (x1) 7 | -11/Scrapyard | Discovered new exit (range 16) 124 | -11/Scrapyard | Entered Materials 182 | -10/Materials | Identified exit to Mines 315 | -10/Materials | Build established: Mutant 476 | -10/Materials | Discovered new exit (range 4) 672 | -10/Materials | Discovered new exit (range 3) 1287 | -10/Materials | Discovered new exit (range 5) 1843 | -10/Materials | Discovered new exit (range 6) 2973 | -10/Materials | Reached level 2 2975 | -10/Materials | Upgraded with Utility slot (x1) 3101 | -10/Materials | Entered Mines 3108 | -10/Mines | Received a Rocket Launcher from a helpful Derelict 3372 | -10/Mines | Discovered new exit (range 7) 3620 | -10/Mines | Learned Materials garrison access intel 3748 | -10/Mines | Discovered new exit (range 11) 3775 | -10/Mines | Reached level 3 3823 | -10/Mines | Entered Materials 3825 | -9/Materials | Reached level 4 4094 | -9/Materials | Upgraded with Weapon slot (x1) 4108 | -9/Materials | Reached level 5 4266 | -9/Materials | Discovered new exit (range 14) 4839 | -9/Materials | Discovered new exit (range 6) 4989 | -9/Materials | Reached level 6 5002 | -9/Materials | Build established: Gunner 5246 | -9/Materials | Reached level 7 5252 | -9/Materials | Upgraded with Propulsion slot (x1) 5422 | -9/Materials | Discovered new exit (range 18) 5423 | -9/Materials | First assault squad dispatched 6216 | -9/Materials | Discovered new exit (range 16) 6313 | -9/Materials | Reached level 8 6451 | -9/Materials | Entered Mines 6451 | -9/Mines | Accompanied by 1 ally 6452 | -9/Mines | Assembled infested the area 6477 | -9/Mines | Met a Derelict bent on vengeance 6581 | -9/Mines | Build established: Trapper-Gunner 6661 | -9/Mines | Deemed a non-threat by the Exiles lab entrance 6661 | -9/Mines | Discovered new exit (range 5) 6671 | -9/Mines | Entered Exiles 6671 | -9/Exiles | Accompanied by 1 ally 6688 | -9/Exiles | Discovered new exit (range 15) 6703 | -9/Exiles | Met 8R-AWN 6715 | -9/Exiles | Warned about trapping Exiles lab 6726 | -9/Exiles | Met EX-HEX 6762 | -9/Exiles | Met EX-BIN 6776 | -9/Exiles | Aligned with FarCom system 6778 | -9/Exiles | Given EX-Vault access code 6805 | -9/Exiles | Opened EX-Vault 6849 | -9/Exiles | Found Field Lobotomy Kit 6852 | -9/Exiles | Found Deploy-a-Sentry 6892 | -9/Exiles | Warned to stay clear of 0b10 Research branches 6959 | -9/Exiles | Attacked by the Exiles 6990 | -9/Exiles | Core integrity fell below 50% 7029 | -9/Exiles | DAS Turret deployed 7033 | -9/Exiles | Core integrity fell below 20% 7038 | -9/Exiles | Allies destroyed 8R-AWN 7041 | -9/Exiles | Self-destructed Last Messages --------------- 07024_ Penetrated by HV Slug. 07027_ Dropped Deploy-a-Sentry. 07029_ DAS Turret deployed. 07029_ Destroyed Prototype Protection. 07029_ 8R-AWN knocked back. 07029_ Penetrated by HV Slug. 07029_ HV Slug penetrates Wall. 07030_ Penetrated by HV Slug. 07030_ HV Slug penetrates Wall. 07032_ Penetrated by HV Slug. 07032_ HV Slug penetrates Earth. 07033_ Penetrated by HV Slug. 07033_ HV Slug penetrates Earth. 07035_ Penetrated by HV Slug. 07035_ HV Slug penetrates Earth. 07036_ Penetrated by HV Slug. 07036_ HV Slug penetrates Earth. 07038_ Penetrated by HV Slug. 07038_ HV Slug penetrates Earth. 07038_ 8R-AWN destroyed. Map ----- +----------------------------------------------------+ | """#???????????????????????????????????????????? | | """#???????????????????????????????????????????? | | """#???????????????????????????????????????????? | | """"???????????????????????????????????????????? | | """#???????????????????????????????????????????? | | " """"???????????????????????????????????????????? | | " #???????????????????????????????????????????? | | """""#???????????????????????????????????????????? | | ######???????????????????????????????????????????? | | ?????????????????????????????????????????????????# | | ????????????????????????????????????????????????# | | ???????????????????????????????????????????????? | | ?###########???????????????????????????????????? | | ##"""""""""##??????????????????????????????????? | | " """ """"##?????????????????????????????????# | | "" " #?##????????????????????????????## | | " """#?# #???????????????????????????# | | " "#??# #??????#####???????????????# | | " "##??# #????##" #??????????????## | | ""###?# #???#" #?????????????## | | """#??# #?## [ ##????????????# | | "#???#;## & ###????????### # | | ##??## ^ ########## # | | ##?#;%^ % #""""## #? | | " ###% %%% * ## | | % t @## * # | | % #### # | | ""#?#"""""#### | | #"""##?#######??#### * | | ######??????????????##### | | ##???????????????????????### | | " %% ##??????????????????????????### | | " " % "#?????????????????????????????### | | " ""#" % "##??????????????????????????????#" | | "" """##""" "##???????????????????????????????## | | #""""#?#########?????????????????????????????????? | | ###??????????????????????????????????????????????? | | ?????????????????????????????????????????????????? | | ?????????????????????????????????????????????????? | | ?????????????????????????????????????????????????? | | ?????????????????????????????????????????????????? | | ?????????????????????????????????????????????????? | | ?????????????????????????????????????????????????? | | ?????????????????????????????????????????????????? | | ?????????????????????????????????????????????????? | | ?????????????????????????????????????????????????? | | ?????????????????????????????????????????????????? | | ?????????????????????????????????????????????????? | | ?????????????????????????????????????????????????? | | ?????????????????????????????????????????????????? | +----------------------------------------------------+ Best States ------------- Heat Dissipation 75 Energy Generation 14 Energy Capacity 630 Matter Stores 350 Matter Capacity 350 Sight Range 18 Terrain Scan Density 10 Armor Coverage 225 Resistance: KI 10 Resistance: TH 10 Evasion (%) 55 Targeting Accuracy 6 Recoil Reduction 2 Trap Extractor Capacity 4 Item Schematics ----------------- Trap Extractor | -9/Materials | Scanalyzed Hpw. Tractor Beam | -9/Materials | Hacked Robot Schematics ------------------ None Fabricated ------------ Nothing Alien Tech Used ----------------- None Achievements -------------- None Challenges ------------ None RPGLIKE | -11 -10 -10 -9 -9 -9 --------- Run | Yrd Mat Min Mat Min Exi Levels Raised 7 | . 1 1 5 . . XP Earned 14590 | 3000 1515 1675 7566 591 243 XP Spent 12000 | 3000 800 . 8200 . . Upgrades 36 | 6 1 . 29 . . Propulsion Slot 2 | 1 . . 1 . . Utility Slot 2 | 1 1 . . . . Weapon Slot 2 | 1 . . 1 . . Core Integrity 6 | . . . 6 . . Heat Dissipation 6 | . . . 6 . . Energy Storage 4 | . . . 4 . . Matter Storage 1 | . . . 1 . . Inventory Capacity 5 | 3 . . 2 . . Sight Range 2 | . . . 2 . . Ranged Accuracy 2 | . . . 2 . . KI Resistance % 2 | . . . 2 . . TH Resistance % 2 | . . . 2 . . Protomatter Created 829 | . 108 49 662 . 10 Integrity Restored 1736 | . 303 147 1286 . . Core 1302 | . 244 147 911 . . Parts 434 | . 59 . 375 . . Protomatter Decayed 184 | . 17 . 161 6 . Game ------ Seed TerrainCoilSink Manual? 0 Play Time 01:14:52 Cumulative 198.5 hours Start 2024.06.08 @ 07:27:01 End 2024.06.08 @ 08:53:39 Sessions 2 Manual Loads 0 Difficulty Rogue Special Mode Winter2019/RPGLIKE Game No. 57 Rogue 52 Adventurer 4 Explorer 1 Win Type - Total 3 Types 1/0/1/1/0/0/0/0/0 Lore% 41 Gallery% 63 Achievement% 44 Wizard Run 0 Options --------- Layout 0 ASCII 0 Keyboard 0 Movement Mouse Keybinds 0 Fullscreen 1 Font 24/Smallcaps Map View 76x50 Zoom Use 0% Tactical HUD 1 Map Filters NONE Filters NONE Steam X RUN: b8667952-a094-4400-bfb2-ff3cfc879271